bitfinex-derivatives/quotes_BTCF0:USTF0_20251129
["timestamp","ask_amount","ask_price","bid_price","bid_amount"]
[1764443742474,0.04574,90774.0,90773.0,0.05834524]
[1764443742679,0.04574,90774.0,90773.0,0.06134524]
[1764443745288,0.00016521,90783.0,90782.0,0.04484]
[1764443746185,0.05604,90800.0,90799.0,0.04484]
[1764443746379,0.08103895,90800.0,90799.0,0.04484]
[1764443747598,0.08103895,90800.0,90799.0,0.04684]
[1764443748585,0.08103895,90800.0,90799.0,0.02501]
[1764443749078,0.08103895,90800.0,90799.0,0.02401]
[1764443749492,0.08103895,90800.0,90799.0,0.02301]
[1764443749689,0.08103895,90800.0,90799.0,0.02401]
[1764443750088,0.08103895,90800.0,90799.0,0.02301]
[1764443750289,0.08103895,90800.0,90799.0,0.02401]
[1764443751193,0.08103895,90800.0,90799.0,0.04584]
[1764443751785,0.08103895,90800.0,90799.0,0.001]
[1764443751990,0.04301,90791.0,90790.0,0.04500521]
[1764443753282,0.04301,90791.0,90790.0,0.04800521]
[1764443753697,0.04301,90791.0,90790.0,0.06360982]
[1764443759787,0.04301,90791.0,90790.0,0.07462142]
[1764443760596,0.04301,90791.0,90790.0,0.06360982]
[1764443773716,0.04301,90791.0,90790.0,0.06260982]
[1764443774313,0.0681192,90791.0,90790.0,0.06160982]
[1764443776728,0.0251092,90791.0,90790.0,0.06160982]
[1764443777414,0.0688192,90791.0,90790.0,0.06160982]
[1764443792135,0.0688192,90791.0,90790.0,0.06289982]
[1764443795935,0.0462292,90791.0,90790.0,0.06289982]
[1764443796134,0.04293531,90806.0,90805.0,0.04553]
[1764443796438,0.0680609,90806.0,90805.0,0.04553]
[1764443797541,0.0710609,90806.0,90805.0,0.04553]
[1764443797735,0.0710609,90806.0,90805.0,0.02241]
[1764443799040,0.0680609,90806.0,90805.0,0.02241]
[1764443799235,0.04266,90793.0,90792.0,0.05905]
[1764443799435,0.06778559,90793.0,90792.0,0.05905]
[1764443799836,0.04266,90793.0,90792.0,0.05905]
[1764443800032,0.06778253,90793.0,90792.0,0.05905]
[1764443800533,0.06778253,90793.0,90792.0,0.06205]
[1764443805841,0.04266,90793.0,90792.0,0.06205]
[1764443808343,0.06773958,90793.0,90792.0,0.06205]
[1764443810434,0.06773899,90793.0,90792.0,0.06205]
[1764443810743,0.04266,90793.0,90792.0,0.06205]
[1764443810943,0.06773888,90793.0,90792.0,0.06205]
[1764443815043,0.04523,90804.0,90803.0,0.04427]
[1764443815243,0.07030915,90804.0,90803.0,0.04427]
[1764443815638,0.04523,90804.0,90803.0,0.04427]
[1764443816238,0.00027531,90806.0,90805.0,0.04427]
[1764443819355,0.04550531,90806.0,90805.0,0.04427]
[1764443820451,0.00027531,90806.0,90805.0,0.04427]
[1764443820653,0.01364,90825.0,90808.0,0.05689]
[1764443821248,0.02287521,90809.0,90808.0,0.05689]
[1764443822053,0.02387521,90809.0,90808.0,0.05689]
[1764443822442,0.00116521,90809.0,90808.0,0.05689]
[1764443832564,0.02387521,90809.0,90808.0,0.05689]
[1764443833564,0.00116521,90809.0,90808.0,0.05689]
[1764443837362,0.0454,90825.0,90824.0,0.04266]
[1764443837664,0.07032701,90825.0,90824.0,0.04266]
[1764443839262,0.0454,90825.0,90824.0,0.04266]
[1764443839464,0.04295972,90834.0,90833.0,0.04304]
[1764443839667,0.06789085,90834.0,90833.0,0.04304]
[1764443839964,0.04285,90824.0,90823.0,0.0540476]
[1764443840166,0.04285,90824.0,90823.0,0.04304]
[1764443840762,0.01299,90831.0,90810.0,0.01397]
[1764443840763,0.04285,90816.0,90815.0,0.02190521]
[1764443840962,0.04285,90816.0,90815.0,0.05421371]
[1764443842761,0.04485,90816.0,90815.0,0.05421371]
[1764443844071,0.04485,90816.0,90815.0,0.06981477]
[1764443859271,0.002,90816.0,90815.0,0.06981477]
[1764443859472,0.02325,90816.0,90815.0,0.06981477]
[1764443861778,0.04485,90816.0,90815.0,0.06981477]
[1764443864280,0.05522,90816.0,90815.0,0.04851477]
[1764443864989,0.05522,90816.0,90815.0,0.07148477]
[1764443868381,0.08020405,90816.0,90815.0,0.07148477]
[1764443868581,0.08020405,90816.0,90815.0,0.06047627]
[1764443878402,0.05522,90816.0,90815.0,0.06047627]
[1764443883805,0.05322,90816.0,90815.0,0.06247627]
[1764443886803,0.05322,90816.0,90815.0,0.03950627]
[1764443887002,0.05322,90816.0,90815.0,0.06247627]
[1764443891715,0.04285,90816.0,90815.0,0.06247627]
[1764443896012,0.02125,90816.0,90815.0,0.06247627]
[1764443896214,0.04447,90825.0,90824.0,0.04508]
[1764443896408,0.06944769,90825.0,90824.0,0.04508]
[1764443897321,0.07044769,90825.0,90824.0,0.04508]
[1764443899018,0.06944769,90825.0,90824.0,0.04908]
[1764443903816,0.07898769,90825.0,90824.0,0.04908]
[1764443904916,0.07898769,90825.0,90824.0,0.04808]
[1764443905107,0.07898769,90825.0,90824.0,0.003]
[1764443905512,0.07898769,90825.0,90824.0,0.02471]
[1764443905810,0.07898769,90825.0,90824.0,0.04777]
[1764443906415,0.07898769,90825.0,90824.0,0.04477]
[1764443906619,0.07898769,90825.0,90824.0,0.04777]
[1764443907217,0.07898769,90825.0,90824.0,0.003]
[1764443907917,0.05804,90816.0,90815.0,0.01576627]
[1764443908318,0.08301064,90816.0,90815.0,0.01576627]
[1764443909218,0.08301064,90816.0,90815.0,0.01876627]
[1764443909418,0.04423,90798.0,90797.0,0.04477]
[1764443911213,0.04423,90798.0,90797.0,0.05931685]
[1764443911414,0.04423,90798.0,90797.0,0.06231685]
[1764443911622,0.04423,90798.0,90797.0,0.01754685]
[1764443911818,0.04423,90798.0,90797.0,0.01454685]
[1764443912025,0.04423,90798.0,90797.0,0.003]
[1764443912325,0.04423,90798.0,90797.0,0.02471]
[1764443912918,0.04423,90798.0,90797.0,0.04777]
[1764443914121,0.04423,90798.0,90788.0,0.14755013]
[1764443914122,0.04423,90789.0,90788.0,0.04493521]
[1764443914322,0.04423,90789.0,90788.0,0.00016521]
[1764443914529,0.06916992,90789.0,90788.0,0.00016521]
[1764443915327,0.06916992,90789.0,90788.0,0.01742829]
[1764443915521,0.04423,90769.0,90768.0,0.0687042]
[1764443915722,0.04423,90769.0,90768.0,0.0557842]
[1764443917530,0.04423,90769.0,90768.0,0.04977]
[1764443918026,0.04423,90769.0,90768.0,0.05077]
[1764443919429,0.04423,90769.0,90768.0,0.07800671]
[1764443920326,0.00016521,90778.0,90777.0,0.0557832]
[1764443921634,0.00016521,90778.0,90777.0,0.0577832]
[1764443922129,0.04439521,90778.0,90777.0,0.0577832]
[1764443922431,0.04439521,90778.0,90777.0,0.04677]
[1764443935131,0.04439521,90778.0,90777.0,0.04603]
[1764443940540,0.02288521,90778.0,90777.0,0.04603]
[1764443941442,0.00016521,90778.0,90777.0,0.04603]
[1764443943142,0.05979,90796.0,90795.0,0.04403]
[1764443943339,0.0848649,90796.0,90795.0,0.04403]
[1764443944543,0.0878649,90796.0,90795.0,0.04403]
[1764443945036,0.0878649,90796.0,90795.0,0.02125]
[1764443945539,0.04632,90787.0,90786.0,0.04419521]
[1764443945741,0.0713949,90787.0,90786.0,0.04419521]
[1764443946442,0.07141537,90787.0,90786.0,0.04419521]
[1764443947743,0.07141537,90787.0,90786.0,0.0589092]
[1764443949339,0.07141463,90787.0,90786.0,0.0148792]
[1764443950737,0.07241463,90787.0,90786.0,0.0148792]
[1764443955349,0.07241463,90787.0,90786.0,0.0363592]
[1764443958450,0.07241463,90787.0,90786.0,0.0148792]
[1764443958651,0.07230924,90787.0,90786.0,0.0148792]
[1764443960854,0.07230924,90787.0,90786.0,0.0363592]
[1764443962856,0.07230924,90787.0,90786.0,0.0576792]
[1764443971962,0.07230924,90787.0,90786.0,0.0363592]
[1764443972160,0.07230924,90787.0,90786.0,0.0148792]
[1764443972660,0.07230924,90787.0,90786.0,0.0363592]
[1764443972859,0.07230924,90787.0,90786.0,0.0148792]
[1764443973561,0.07230924,90787.0,90786.0,0.0576792]
[1764443974264,0.07230924,90787.0,90786.0,0.0148792]
[1764443977561,0.07230924,90787.0,90786.0,0.0363592]
[1764443981159,0.07230924,90787.0,90786.0,0.0576792]
[1764443983370,0.07231653,90787.0,90786.0,0.0576792]
[1764444004887,0.02599653,90787.0,90786.0,0.0688292]
[1764444005188,0.04810653,90787.0,90786.0,0.0688292]
[1764444005788,0.07037653,90787.0,90786.0,0.0688292]
[1764444006779,0.06937653,90787.0,90786.0,0.0688292]
[1764444007088,0.06937653,90787.0,90786.0,0.0698292]
[1764444009184,0.04710653,90787.0,90786.0,0.0698292]
[1764444009691,0.06937653,90787.0,90786.0,0.0698292]
[1764444010391,0.06937653,90787.0,90786.0,0.0688292]
[1764444010589,0.06937653,90787.0,90786.0,0.0698292]
[1764444014385,0.0692114,90787.0,90786.0,0.0586792]
[1764444019500,0.0692114,90787.0,90786.0,0.0576792]
[1764444020999,0.0692114,90787.0,90786.0,0.0686913]
[1764444021495,0.0692114,90787.0,90786.0,0.0576792]
[1764444041516,0.05727,90802.0,90801.0,0.04539]
[1764444041719,0.08210398,90802.0,90801.0,0.04539]
[1764444043610,0.08410398,90802.0,90801.0,0.04539]
[1764444046118,0.02683398,90802.0,90801.0,0.05528]
[1764444046422,0.0139,90825.0,90804.0,0.05713]
[1764444047015,0.0139,90822.0,90804.0,0.05713]
[1764444047213,0.05906,90822.0,90821.0,0.04372]
[1764444047411,0.0697193,90822.0,90821.0,0.04372]
[1764444048234,0.04516,90822.0,90821.0,0.04372]
[1764444048427,0.07170056,90822.0,90821.0,0.04372]
[1764444049835,0.06970056,90822.0,90821.0,0.04372]
[1764444050430,0.06970056,90822.0,90821.0,0.04472]
[1764444051331,0.07906056,90822.0,90821.0,0.04472]
[1764444053936,0.07906056,90822.0,90821.0,0.06152765]
[1764444058542,0.05452,90822.0,90821.0,0.06152765]
[1764444062941,0.05452,90822.0,90821.0,0.06052765]
[1764444064946,0.04516,90822.0,90821.0,0.06052765]
[1764444066142,0.01400972,90831.0,90830.0,0.04372]
[1764444066143,0.02316972,90831.0,90830.0,0.04372]
[1764444066342,0.04526972,90831.0,90830.0,0.04372]
[1764444069240,0.06977456,90831.0,90830.0,0.04372]
[1764444069447,0.04526972,90831.0,90830.0,0.04372]
[1764444070746,0.05462972,90831.0,90830.0,0.04372]
[1764444071143,0.07915024,90831.0,90830.0,0.04372]
[1764444072952,0.07915024,90831.0,90830.0,0.05997896]
[1764444076150,0.08015024,90831.0,90830.0,0.05997896]
[1764444086562,0.0799924,90831.0,90830.0,0.05997896]
[1764444094769,0.08000877,90831.0,90830.0,0.05997896]
[1764444111387,0.05562972,90831.0,90830.0,0.05997896]
[1764444111582,0.08002886,90831.0,90830.0,0.05997896]
[1764444122685,0.52002886,90831.0,90830.0,0.01625896]
[1764444122894,0.04308,90813.0,90812.0,0.02314521]
[1764444123085,0.06747914,90813.0,90812.0,0.02314521]
[1764444124386,0.06747914,90813.0,90812.0,0.04250001]
[1764444124789,0.06747914,90813.0,90812.0,0.06418001]
[1764444126696,0.06747914,90813.0,90812.0,0.06018001]
[1764444126901,0.06947914,90813.0,90812.0,0.06018001]
[1764444133115,0.04508,90813.0,90812.0,0.06018001]
[1764444133813,0.04308,90813.0,90812.0,0.06018001]
[1764444134114,0.04408,90813.0,90812.0,0.06018001]
[1764444137212,0.04308,90813.0,90812.0,0.06018001]
[1764444140313,0.05549,90813.0,90812.0,0.06018001]
[1764444140525,0.05649,90813.0,90812.0,0.06018001]
[1764444142320,0.04408,90813.0,90812.0,0.06018001]
[1764444145326,0.08132788,90813.0,90812.0,0.06018001]
[1764444148435,0.08032788,90813.0,90812.0,0.06018001]
[1764444148630,0.08132788,90813.0,90812.0,0.06018001]
[1764444149135,0.08232788,90813.0,90812.0,0.06018001]
[1764444151529,0.06937788,90813.0,90812.0,0.06018001]
[1764444153233,0.06837788,90813.0,90812.0,0.06018001]
[1764444155231,0.06837788,90813.0,90812.0,0.06707001]
[1764444155436,0.02529788,90813.0,90812.0,0.06707001]
[1764444155732,0.01295,90832.0,90812.0,0.06707001]
[1764444155733,0.04620972,90831.0,90830.0,0.04467]
[1764444155936,0.07055541,90831.0,90830.0,0.04467]
[1764444156737,0.07255541,90831.0,90830.0,0.04467]
[1764444158238,0.07155541,90831.0,90830.0,0.04467]
[1764444158742,0.04720972,90831.0,90830.0,0.04467]
[1764444161646,0.00110972,90831.0,90830.0,0.04467]
[1764444162039,0.02336972,90831.0,90830.0,0.04567]
[1764444164246,0.04383519,90846.0,90845.0,0.04424]
[1764444166041,0.00327519,90846.0,90845.0,0.04424]
[1764444169155,0.02539519,90846.0,90845.0,0.04424]
[1764444172453,0.02539519,90846.0,90845.0,0.05890155]
[1764444172950,0.00327519,90846.0,90845.0,0.05890155]
[1764444174746,0.00264,90862.0,90861.0,0.04424]
[1764444174747,0.0462,90862.0,90861.0,0.04424]
[1764444174950,0.07028018,90862.0,90861.0,0.04424]
[1764444175259,0.0462,90862.0,90861.0,0.04424]
[1764444176160,0.0532,90862.0,90861.0,0.04424]
[1764444182261,0.07728288,90862.0,90861.0,0.04424]
[1764444182460,0.07728288,90862.0,90861.0,0.05902262]
[1764444184571,0.07728288,90862.0,90861.0,0.07056262]
[1764444184762,0.00964,90862.0,90861.0,0.07056262]
[1764444184962,0.03176,90862.0,90861.0,0.07056262]
[1764444185171,0.04356,90885.0,90884.0,0.04424]
[1764444185371,0.06765574,90885.0,90884.0,0.02138]
[1764444185967,0.06765574,90885.0,90884.0,0.04424]
[1764444188067,0.06765574,90885.0,90875.0,0.00016512]
[1764444188273,0.05463,90876.0,90875.0,0.04440512]
[1764444188460,0.0787144,90876.0,90875.0,0.04440512]
[1764444189272,0.0676444,90876.0,90875.0,0.04440512]
[1764444190265,0.0676444,90876.0,90875.0,0.04640512]
[1764444191977,0.0806844,90876.0,90875.0,0.06079744]
[1764444198380,0.3306844,90876.0,90875.0,0.00216512]
[1764444199880,0.04279,90858.0,90857.0,0.0546634]
[1764444200081,0.04279,90858.0,90857.0,0.04366]
[1764444200778,0.04279,90858.0,90832.0,0.013]
[1764444200779,0.05634,90844.0,90843.0,0.04366]
[1764444201686,0.04279,90844.0,90843.0,0.04366]
[1764444202881,0.04279,90844.0,90843.0,0.05166]
[1764444203885,0.0669569,90844.0,90843.0,0.05166]
[1764444204287,0.04279,90844.0,90843.0,0.05166]
[1764444204480,0.04279,90844.0,90843.0,0.06535576]
[1764444206675,0.04935,90844.0,90843.0,0.02169576]
[1764444206881,0.04279,90835.0,90834.0,0.00016512]
[1764444207392,0.04279,90835.0,90834.0,0.02253512]
[1764444209887,0.04279,90835.0,90834.0,0.05925506]
[1764444210495,0.04279,90835.0,90834.0,0.05725506]
[1764444222999,0.04279,90835.0,90834.0,0.01359506]
[1764444223198,0.04568,90817.0,90816.0,0.04449]
[1764444223503,0.04568,90817.0,90816.0,0.02133]
[1764444224000,0.04568,90817.0,90816.0,0.04449]
[1764444225796,0.04668,90817.0,90816.0,0.04449]
[1764444227797,0.04668,90817.0,90816.0,0.0581476]
[1764444228805,0.04568,90817.0,90816.0,0.0581476]
[1764444229404,0.04584512,90826.0,90825.0,0.04449]
[1764444229608,0.07045909,90826.0,90825.0,0.04449]
[1764444231710,0.07245909,90826.0,90825.0,0.04449]
[1764444238811,0.07045909,90826.0,90825.0,0.04449]
[1764444242712,0.02477909,90826.0,90825.0,0.04449]
[1764444244116,0.04727909,90826.0,90825.0,0.04549]
[1764444244505,0.04727909,90826.0,90825.0,0.04649]
[1764444244919,0.07045909,90826.0,90825.0,0.04649]
[1764444248617,0.04584512,90826.0,90825.0,0.04649]
[1764444249120,0.02266512,90826.0,90825.0,0.04649]
[1764444249315,0.04584512,90826.0,90825.0,0.04649]
[1764444250313,0.02266512,90826.0,90825.0,0.04649]
[1764444250508,0.00016512,90826.0,90825.0,0.04649]
[1764444250712,0.04568,90848.0,90847.0,0.04449]
[1764444250923,0.07032865,90848.0,90847.0,0.04449]
[1764444253123,0.07332865,90848.0,90847.0,0.04449]
[1764444260114,0.07332865,90848.0,90847.0,0.05805409]
[1764444260917,0.00016479,90857.0,90847.0,0.05805409]
[1764444260918,0.02181479,90857.0,90856.0,0.0574]
[1764444262420,0.04890479,90857.0,90856.0,0.0574]
[1764444264620,0.04890479,90857.0,90856.0,0.04406]
[1764444266336,0.04890479,90857.0,90856.0,0.0550636]
[1764444268223,0.04890479,90857.0,90856.0,0.04406]
[1764444278038,0.07352088,90857.0,90856.0,0.04406]
[1764444278642,0.04890479,90857.0,90856.0,0.04406]
[1764444280146,0.07354329,90857.0,90856.0,0.04406]
[1764444282147,0.02980329,90857.0,90856.0,0.05639]
[1764444282648,0.02681479,90857.0,90856.0,0.05639]
[1764444283053,0.04890479,90857.0,90856.0,0.05639]
[1764444283256,0.07354933,90857.0,90856.0,0.05639]
[1764444284067,0.07330462,90857.0,90856.0,0.05639]
[1764444284468,0.04890479,90857.0,90856.0,0.05639]
[1764444284661,0.00516479,90857.0,90856.0,0.05639]
[1764444285375,0.02817479,90857.0,90856.0,0.05639]
[1764444287665,0.00516479,90857.0,90856.0,0.05639]
[1764444288768,0.02957569,90857.0,90856.0,0.05639]
[1764444290362,0.05258569,90857.0,90856.0,0.05639]
[1764444291166,0.07385569,90857.0,90856.0,0.05639]
[1764444291371,0.07085569,90857.0,90856.0,0.05639]
[1764444291767,0.07085569,90857.0,90856.0,0.0550636]
[1764444293369,0.07085569,90857.0,90856.0,0.04406]
[1764444298772,0.04644479,90857.0,90856.0,0.04406]
[1764444303182,0.0708699,90857.0,90856.0,0.04406]
[1764444305981,0.04428,90848.0,90847.0,0.01356409]
[1764444306176,0.04428,90839.0,90838.0,0.04449512]
[1764444307379,0.04428,90839.0,90838.0,0.05976261]
[1764444308681,0.04428,90839.0,90838.0,0.06276261]
[1764444315890,0.04428,90839.0,90838.0,0.04099261]
[1764444316486,0.04428,90839.0,90838.0,0.04009261]
[1764444316985,0.04428,90839.0,90838.0,0.06341261]
[1764444318287,0.04428,90839.0,90838.0,0.06141261]
[1764444322186,0.00913,90849.0,90848.0,0.04542]
[1764444322187,0.04562,90849.0,90848.0,0.04542]
[1764444323093,0.06999571,90849.0,90848.0,0.04542]
[1764444324490,0.07099571,90849.0,90848.0,0.04542]
[1764444325488,0.06999571,90849.0,90848.0,0.04542]
[1764444326890,0.06999571,90849.0,90838.0,0.01543261]
[1764444326891,0.04562,90839.0,90838.0,0.06085261]
[1764444327983,0.04562,90839.0,90838.0,0.06385261]
[1764444333601,0.04562,90848.0,90847.0,0.04542]
[1764444333901,0.07002607,90848.0,90847.0,0.04542]
[1764444357114,0.14744019,90857.0,90847.0,0.04542]
[1764444357115,0.00016479,90857.0,90847.0,0.04542]
[1764444357313,0.04453479,90857.0,90856.0,0.04567]
[1764444357512,0.06890417,90857.0,90856.0,0.04567]
[1764444359420,0.04453479,90857.0,90856.0,0.04567]
[1764444359920,0.04653479,90857.0,90856.0,0.04567]
[1764444364923,0.04653479,90857.0,90856.0,0.0595532]
[1764444372415,0.00216479,90857.0,90856.0,0.0595532]
[1764444386849,0.04544479,90857.0,90856.0,0.0595532]
[1764444396562,0.00216479,90857.0,90856.0,0.0595532]
[1764444400162,0.03533,90876.0,90875.0,0.04375]
[1764444400360,0.06763765,90876.0,90875.0,0.04375]
[1764444401560,0.06963765,90876.0,90875.0,0.04375]
[1764444401961,0.06963765,90876.0,90875.0,0.02142]
[1764444401962,0.08353765,90876.0,90875.0,0.02142]
[1764444405860,0.04414,90868.0,90867.0,0.0570822]
[1764444407063,0.04414,90868.0,90867.0,0.0580822]
[1764444408458,0.04414,90868.0,90867.0,0.04708]
[1764444412275,0.04414,90868.0,90867.0,0.05396]
[1764444412471,0.05792,90879.0,90878.0,0.04608]
[1764444412676,0.06839551,90879.0,90878.0,0.04608]
[1764444413574,0.07039551,90879.0,90878.0,0.04608]
[1764444417273,0.07039551,90879.0,90878.0,0.05979952]
[1764444427986,0.07040113,90879.0,90878.0,0.05979952]
[1764444464729,0.07040113,90879.0,90878.0,0.48979952]
[1764444489050,0.07040113,90879.0,90878.0,0.19979952]
[1764444489244,0.07040113,90879.0,90878.0,0.05979952]
[1764444489548,0.07040113,90879.0,90878.0,0.43979952]
[1764444495053,0.02626113,90879.0,90878.0,0.44488952]
[1764444496856,0.04919113,90879.0,90878.0,0.44488952]
[1764444497856,0.02626113,90879.0,90878.0,0.44488952]
[1764444503254,0.02426113,90879.0,90878.0,0.44488952]
[1764444503459,0.02526113,90879.0,90878.0,0.44488952]
[1764444513366,0.02278,90904.0,90903.0,0.04479]
[1764444513574,0.02278,90904.0,90903.0,0.42479]
[1764444514171,0.01306,90914.0,90913.0,0.04479]
[1764444514172,0.05749,90914.0,90913.0,0.04479]
[1764444515266,0.04443,90901.0,90900.0,0.1919644]
[1764444515469,0.04443,90901.0,90900.0,0.45479]
[1764444516575,0.04443,90901.0,90900.0,0.45679]
[1764444517275,0.04443,90901.0,90900.0,0.4677883]
[1764444517873,0.04443,90901.0,90900.0,0.45679]
[1764444519672,0.04443,90901.0,90900.0,0.04679]
[1764444519875,0.04443,90901.0,90900.0,0.02523]
[1764444520076,0.04443,90901.0,90900.0,0.0382489]
[1764444520376,0.04443,90901.0,90900.0,0.0598089]
[1764444537883,0.07734589,90901.0,90900.0,0.0598089]
[1764444538089,0.07886847,90901.0,90900.0,0.0598089]
[1764444541386,0.10277958,90901.0,90900.0,0.0598089]
[1764444550702,0.10277958,90901.0,90900.0,0.0150189]
[1764444550703,0.35277958,90901.0,90900.0,0.0150189]
[1764444550998,0.26277958,90901.0,90900.0,0.0150189]
[1764444558907,0.51277958,90901.0,90900.0,0.0150189]
[1764444566998,0.51277958,90901.0,90878.0,0.29393948]
[1764444566999,0.04401,90869.0,90868.0,0.04437]
[1764444567310,0.03901515,90869.0,90868.0,0.41437]
[1764444567497,0.03901515,90869.0,90868.0,0.10437]
[1764444567697,0.0628211,90869.0,90868.0,0.04437]
[1764444568213,0.09725957,90869.0,90868.0,0.04537]
[1764444568806,0.07345362,90869.0,90868.0,0.04437]
[1764444569308,0.07345362,90869.0,90868.0,0.05437]
[1764444569696,0.07345362,90869.0,90868.0,0.04537]
[1764444570703,0.07345362,90869.0,90868.0,0.05809271]
[1764444585420,0.07345362,90869.0,90868.0,0.41809271]
[1764444593719,0.07345362,90869.0,90868.0,0.42984271]
[1764444595428,0.0972508,90869.0,90868.0,0.42984271]
[1764444595929,0.0972508,90869.0,90868.0,0.06984271]
[1764444596431,0.0972508,90869.0,90868.0,0.05809271]
[1764444601529,0.4972508,90869.0,90868.0,0.01372271]
[1764444601734,0.04315,90866.0,90865.0,0.04363132]
[1764444602034,0.06694718,90866.0,90865.0,0.06363132]
[1764444602234,0.10138565,90866.0,90865.0,0.06363132]
[1764444603324,0.10138565,90866.0,90865.0,0.31363132]
[1764444603528,0.10138565,90866.0,90865.0,0.31463132]
[1764444604028,0.05823565,90866.0,90865.0,0.32688863]
[1764444604737,0.03443847,90866.0,90865.0,0.32688863]
[1764444605127,0.14721696,90890.0,90877.0,0.0435]
[1764444605327,0.02382494,90889.0,90877.0,0.4135]
[1764444605534,0.0239896,90878.0,90877.0,0.4135]
[1764444605933,0.0671396,90878.0,90877.0,0.4135]
[1764444606838,0.0691396,90878.0,90877.0,0.4135]
[1764444607737,0.0671396,90878.0,90877.0,0.4145]
[1764444608739,0.06711494,90878.0,90877.0,0.4145]
[1764444613042,0.04331466,90878.0,90877.0,0.4145]
[1764444613240,0.06710556,90878.0,90877.0,0.4145]
[1764444613639,0.06710556,90878.0,90877.0,0.42684474]
[1764444617849,0.06710556,90878.0,90877.0,0.19684474]
[1764444618847,0.04331466,90878.0,90877.0,0.19684474]
[1764444621147,0.04331466,90878.0,90877.0,0.43684474]
[1764444624752,0.02122466,90878.0,90877.0,0.43684474]
[1764444624949,0.00016466,90878.0,90877.0,0.43684474]
[1764444627554,0.19243696,90900.0,90899.0,0.04491]
[1764444627752,0.6289905,90900.0,90899.0,0.04491]
[1764444627952,0.4389905,90900.0,90899.0,0.04491]
[1764444628748,0.4439905,90900.0,90899.0,0.04491]
[1764444629653,0.4572505,90900.0,90899.0,0.04491]
[1764444633358,0.4572505,90900.0,90899.0,0.05716464]
[1764444635555,0.8772505,90900.0,90899.0,0.01225464]
[1764444635758,0.8772505,90900.0,90890.0,0.00016501]
[1764444635759,0.04522,90891.0,90890.0,0.04507501]
[1764444635952,0.0689905,90891.0,90890.0,0.04507501]
[1764444638058,0.0709905,90891.0,90890.0,0.04507501]
[1764444638859,0.0709905,90891.0,90890.0,0.05767167]
[1764444641257,0.07100842,90891.0,90890.0,0.05767167]
[1764444650459,0.08111842,90891.0,90890.0,0.05767167]
[1764444661467,0.80111842,90891.0,90890.0,0.01276167]
[1764444661663,0.0444,90871.0,90870.0,0.05664]
[1764444661871,0.0444,90871.0,90870.0,0.40664]
[1764444662463,0.0444,90871.0,90870.0,0.42028248]
[1764444662971,0.0444,90871.0,90870.0,0.42328248]
[1764444663472,0.0444,90871.0,90870.0,0.41046248]
[1764444663674,0.0444,90871.0,90870.0,0.003]
[1764444663675,0.44815672,90871.0,90870.0,0.003]
[1764444664579,0.0444,90866.0,90865.0,0.02266132]
[1764444664872,0.06815672,90866.0,90865.0,0.04395132]
[1764444666371,0.06815672,90866.0,90865.0,0.05772594]
[1764444667379,0.06811301,90866.0,90865.0,0.05772594]
[1764444668477,0.0444,90866.0,90865.0,0.05772594]
[1764444668879,0.06810679,90866.0,90865.0,0.05772594]
[1764444671879,0.46810679,90866.0,90865.0,0.01390594]
[1764444673286,0.46910679,90866.0,90865.0,0.01390594]
[1764444673678,0.46910679,90866.0,90846.0,0.01309519]
[1764444673679,0.04486,90847.0,90846.0,0.02272519]
[1764444673884,0.04486,90847.0,90846.0,0.00010701]
[1764444674588,0.04495142,90847.0,90846.0,0.00010701]
[1764444675982,0.04495142,90847.0,90846.0,0.05829747]
[1764444676286,0.04595142,90847.0,90846.0,0.05829747]
[1764444676587,0.04595142,90847.0,90846.0,0.01392747]
[1764444676784,0.80595142,90847.0,90846.0,0.00010701]
[1764444676984,0.82978837,90847.0,90846.0,0.00010701]
[1764444677287,0.58978837,90847.0,90846.0,0.00010701]
[1764444677483,0.04486,90838.0,90837.0,0.04453511]
[1764444679280,0.04486,90838.0,90837.0,0.04553511]
[1764444680792,0.04486,90838.0,90837.0,0.05951463]
[1764444683091,0.04486,90838.0,90837.0,0.05851463]
[1764444688286,0.74486,90838.0,90837.0,0.01414463]
[1764444688491,0.74498109,90838.0,90837.0,0.01414463]
[1764444688688,0.04485,90823.0,90822.0,0.05816]
[1764444688988,0.04485,90823.0,90822.0,0.42816]
[1764444690296,0.04485,90823.0,90822.0,0.44376669]
[1764444692193,0.04485,90823.0,90822.0,0.06077669]
[1764444692500,0.01394511,90832.0,90831.0,0.04517]
[1764444692501,0.04501511,90832.0,90831.0,0.04517]
[1764444698899,0.06888832,90832.0,90831.0,0.04517]
[1764444699401,0.04501511,90832.0,90831.0,0.04517]
[1764444699605,0.06889581,90832.0,90831.0,0.04517]
[1764444701398,0.06891462,90832.0,90831.0,0.04517]
[1764444703999,0.06891462,90832.0,90824.0,0.01279]
[1764444704000,0.04542,90823.0,90822.0,0.05768669]
[1764444704319,0.06931951,90823.0,90822.0,0.05084]
[1764444705404,0.06931951,90823.0,90822.0,0.05284]
[1764444705596,0.04542,90823.0,90822.0,0.05284]
[1764444705796,0.04542,90823.0,90822.0,0.04608]
[1764444706207,0.06944128,90823.0,90822.0,0.04608]
[1764444706406,0.04542,90823.0,90822.0,0.04508]
[1764444706906,0.06955725,90823.0,90822.0,0.04508]
[1764444707703,0.44955725,90823.0,90822.0,0.001]
[1764444707898,0.44955725,90823.0,90822.0,0.02259]
[1764444708097,0.44955725,90823.0,90816.0,0.01392918]
[1764444708098,0.04542,90817.0,90816.0,0.03651918]
[1764444708306,0.04542,90814.0,90813.0,0.02275511]
[1764444708497,0.06944805,90814.0,90813.0,0.05823093]
[1764444709707,0.06944805,90814.0,90813.0,0.05923093]
[1764444711506,0.06944805,90814.0,90813.0,0.42823093]
[1764444712107,0.06944805,90814.0,90813.0,0.01415093]
[1764444712305,0.05727,90796.0,90776.0,0.0133]
[1764444712505,0.08143396,90796.0,90795.0,0.01359814]
[1764444712710,0.08143396,90796.0,90795.0,0.03618814]
[1764444713010,0.08143396,90796.0,90795.0,0.05767814]
[1764444714207,0.06958396,90796.0,90795.0,0.05767814]
[1764444714414,0.04555591,90796.0,90795.0,0.07097814]
[1764444714813,0.04555591,90796.0,90795.0,0.07497814]
[1764444715314,0.04555591,90796.0,90795.0,0.06167814]
[1764444721024,0.05945591,90796.0,90795.0,0.06167814]
[1764444721221,0.04555591,90796.0,90795.0,0.06167814]
[1764444722120,0.00013591,90796.0,90795.0,0.06167814]
[1764444722914,0.00013591,90796.0,90795.0,0.50268914]
[1764444723130,0.00013591,90796.0,90795.0,0.49167814]
[1764444733943,0.00016521,90805.0,90804.0,0.05051]